bitfinex/quotes_BTCUSD_20240820
["timestamp","ask_amount","ask_price","bid_price","bid_amount"]
[1724166214326,2.40513054,59289.0,59288.0,0.56543626]
[1724166214536,1.84430365,59289.0,59288.0,0.56543626]
[1724166214751,1.74430365,59289.0,59288.0,0.56543626]
[1724166216045,1.74430395,59289.0,59288.0,0.56543626]
[1724166216500,1.90841967,59289.0,59288.0,0.56543626]
[1724166216705,2.00841967,59289.0,59288.0,0.56543626]
[1724166217537,1.84430308,59289.0,59288.0,0.56543626]
[1724166218580,2.00839415,59289.0,59288.0,0.56543626]
[1724166218889,1.84430308,59289.0,59288.0,0.56543626]
[1724166219096,2.00839415,59289.0,59288.0,0.56543626]
[1724166219309,1.84430308,59289.0,59288.0,0.56543626]
[1724166219542,1.84230308,59289.0,59288.0,0.56543626]
[1724166219754,2.51216708,59289.0,59288.0,0.37508626]
[1724166219964,2.51216708,59289.0,59288.0,0.37457894]
[1724166220826,1.84230502,59289.0,59288.0,0.37457894]
[1724166222571,2.11216902,59289.0,59288.0,0.37457894]
[1724166222784,1.84230502,59289.0,59288.0,0.37457894]
[1724166223863,2.11216902,59289.0,59288.0,0.37457894]
[1724166224083,1.84230502,59289.0,59288.0,0.37457894]
[1724166225174,1.84230361,59289.0,59288.0,0.37457894]
[1724166225397,1.57243961,59289.0,59288.0,0.37457894]
[1724166226271,1.73649788,59289.0,59288.0,0.37457894]
[1724166227300,2.00636188,59289.0,59288.0,0.37457894]
[1724166227497,1.73652218,59289.0,59288.0,0.37457894]
[1724166227733,1.57243961,59289.0,59288.0,0.37457894]
[1724166229930,1.57243795,59289.0,59288.0,0.33400664]
[1724166230791,1.55722333,59289.0,59288.0,0.33400664]
[1724166231007,1.57243788,59289.0,59288.0,0.33400664]
[1724166233870,1.57243756,59289.0,59288.0,0.33400664]
[1724166235537,1.57243725,59289.0,59288.0,0.33400664]
[1724166237244,1.57043725,59289.0,59288.0,0.33400664]
[1724166237668,2.11016525,59289.0,59288.0,0.33400664]
[1724166237880,1.84030125,59289.0,59288.0,0.33400664]
[1724166238309,2.08005045,59289.0,59288.0,0.33400664]
[1724166238524,1.84030125,59289.0,59288.0,0.33400664]
[1724166239188,1.57043725,59289.0,59288.0,0.33400664]
[1724166240048,1.57043725,59289.0,59288.0,0.18258267]
[1724166240496,1.56250103,59289.0,59288.0,0.18258267]
[1724166240926,1.83236503,59289.0,59288.0,0.18258267]
[1724166241175,2.08701511,59289.0,59288.0,0.11511467]
[1724166241390,0.582609,59287.0,59286.0,1.99077377]
[1724166241647,1.21476204,59287.0,59286.0,1.99077377]
[1724166245533,6.71903897,59284.0,59283.0,1.41643905]
[1724166245736,6.9482954,59284.0,59283.0,1.41643905]
[1724166245955,7.2181824,59284.0,59283.0,1.41643905]
[1724166246170,8.0181824,59284.0,59283.0,1.38945606]
[1724166246382,1.77687544,59283.0,59282.0,1.23543906]
[1724166246601,1.77687544,59283.0,59282.0,1.13422806]
[1724166246602,3.15948363,59283.0,59282.0,1.13422806]
[1724166246817,4.14100373,59283.0,59282.0,1.13422806]
[1724166247041,3.94310856,59283.0,59282.0,1.13422806]
[1724166247281,4.10025278,59283.0,59282.0,1.13422806]
[1724166247492,2.99635278,59283.0,59282.0,0.96554306]
[1724166247917,3.08064222,59283.0,59282.0,0.96554306]
[1724166248133,3.03018278,59283.0,59282.0,0.96554306]
[1724166248344,3.12583106,59283.0,59282.0,0.86433206]
[1724166248574,6.43769862,59283.0,59282.0,0.79685806]
[1724166248778,6.52198806,59283.0,59282.0,0.79685806]
[1724166248983,6.55581806,59283.0,59282.0,0.79685806]
[1724166249187,6.57881806,59283.0,59282.0,0.79685806]
[1724166249446,6.84902376,59283.0,59282.0,0.62817306]
[1724166249663,6.94902376,59283.0,59282.0,0.62817306]
[1724166249883,3.73066676,59283.0,59282.0,0.42105166]
[1724166250098,7.45982841,59283.0,59282.0,0.42105166]
[1724166250309,7.54411785,59283.0,59282.0,0.38731466]
[1724166250537,7.54411785,59283.0,59282.0,0.25236266]
[1724166250753,7.54411785,59283.0,59281.0,1.3549]
[1724166250754,5.13571112,59283.0,59281.0,1.33326266]
[1724166250962,6.27584977,59282.0,59281.0,1.33326266]
[1724166251176,6.90630074,59282.0,59281.0,1.33326266]
[1724166251385,4.32882278,59282.0,59281.0,0.89474037]
[1724166251602,4.85169476,59282.0,59281.0,0.66528837]
[1724166251817,7.57137474,59282.0,59281.0,0.66528837]
[1724166252233,8.37137474,59282.0,59281.0,0.66528837]
[1724166252488,8.37137474,59282.0,59281.0,0.47259837]
[1724166252698,5.63487369,59282.0,59281.0,0.47259837]
[1724166252901,0.08441368,59281.0,59280.0,0.80165054]
[1724166253126,0.08441368,59281.0,59280.0,0.57801954]
[1724166253127,1.86435368,59281.0,59280.0,0.57801954]
[1724166253370,3.04539836,59281.0,59280.0,0.14134654]
[1724166253609,3.04539836,59281.0,59279.0,1.7116]
[1724166253610,1.43393771,59280.0,59279.0,1.4663064]
[1724166253818,9.5428616,59280.0,59279.0,0.85344731]
[1724166254030,1.06332149,59279.0,59278.0,1.32259654]
[1724166254245,8.11972862,59279.0,59278.0,1.15379654]
[1724166254472,8.80227854,59279.0,59278.0,0.64289954]
[1724166254679,4.49550756,59279.0,59278.0,0.47409954]
[1724166254887,4.51313774,59279.0,59278.0,0.30529954]
[1724166255096,4.51313774,59279.0,59277.0,0.48200872]
[1724166255097,8.56324028,59279.0,59277.0,0.48200872]
[1724166255310,1.36956389,59277.0,59276.0,1.56704863]
[1724166255519,2.68118089,59277.0,59276.0,0.94885795]
[1724166255728,3.44329528,59277.0,59276.0,0.6124748]
[1724166255943,3.44329528,59277.0,59275.0,1.34785896]
[1724166255944,1.73134635,59276.0,59275.0,1.34785896]
[1724166256147,1.42342081,59275.0,59274.0,1.44340989]
[1724166256356,1.42342081,59275.0,59274.0,0.94970876]
[1724166256357,4.32229308,59275.0,59274.0,0.94970876]
[1724166256573,5.94513712,59275.0,59274.0,0.00632776]
[1724166256782,5.94513712,59275.0,59272.0,1.7186]
[1724166256783,1.57116148,59274.0,59272.0,1.7186]
[1724166256983,1.74721719,59272.0,59271.0,0.69462517]
[1724166257237,1.63321065,59271.0,59270.0,1.66534601]
[1724166257484,1.11985255,59270.0,59269.0,1.27981553]
[1724166257697,1.11985255,59270.0,59240.0,0.00821]
[1724166257698,1.47682249,59269.0,59267.0,1.3634]
[1724166257906,5.01624465,59268.0,59267.0,0.68473378]
[1724166258113,8.78317271,59268.0,59211.0,0.00822]
[1724166258333,8.78317271,59268.0,59266.0,0.17816609]
[1724166258334,3.46224442,59267.0,59266.0,0.17816609]
[1724166258557,3.46224442,59267.0,59265.0,0.56415412]
[1724166258558,1.20712223,59266.0,59265.0,0.56415412]
[1724166258781,3.43897165,59266.0,59265.0,0.4710534]
[1724166258994,3.75835941,59266.0,59265.0,0.36416621]
[1724166259205,5.27802495,59266.0,59265.0,0.30364997]
[1724166259441,5.30512785,59266.0,59265.0,0.20240897]
[1724166259652,5.30512785,59266.0,59265.0,0.13491497]
[1724166259653,5.26892243,59266.0,59265.0,0.13491497]
[1724166259869,2.78775122,59265.0,59264.0,1.59905768]
[1724166260105,3.8125335,59265.0,59264.0,1.38847756]
[1724166260319,9.88418139,59265.0,59264.0,0.811004]
[1724166260523,9.88418139,59265.0,59264.0,0.74351]
[1724166260524,8.96359104,59265.0,59264.0,0.74351]
[1724166260950,4.52786904,59265.0,59264.0,0.74351]
[1724166261160,8.96359104,59265.0,59264.0,0.74351]
[1724166261363,9.16789949,59265.0,59264.0,0.57477]
[1724166261568,4.78701802,59265.0,59264.0,0.57477]
[1724166261778,4.54748511,59265.0,59264.0,0.54826125]
[1724166261994,4.79341113,59265.0,59264.0,0.54826125]
[1724166262199,9.85133313,59265.0,59264.0,0.54826125]
[1724166262405,10.13532136,59265.0,59264.0,0.37952125]
[1724166262608,10.3713985,59265.0,59264.0,0.38034325]
[1724166262826,10.54625961,59265.0,59264.0,0.38034325]
[1724166263035,10.37984057,59265.0,59264.0,0.38034325]
[1724166263247,10.54482095,59265.0,59264.0,0.38034325]
[1724166263457,10.54482095,59265.0,59264.0,0.15797095]
[1724166263666,10.27162794,59265.0,59264.0,0.15797095]
[1724166263881,10.54547036,59265.0,59264.0,0.15797095]
[1724166264097,10.35449794,59265.0,59264.0,0.15797095]
[1724166264306,6.10994895,59265.0,59264.0,0.14048451]
[1724166264492,6.10994895,59265.0,59263.0,2.4839]
[1724166264493,2.51388347,59264.0,59263.0,2.44523919]
[1724166264787,10.27636207,59264.0,59263.0,2.44523919]
[1724166265001,10.35926898,59264.0,59263.0,2.40986704]
[1724166265219,10.35926898,59264.0,59263.0,2.40816704]
[1724166265220,10.18146898,59264.0,59263.0,2.40816704]
[1724166265430,10.18146898,59264.0,59263.0,2.21016295]
[1724166265431,5.92061898,59264.0,59263.0,2.21016295]
[1724166265638,6.08931898,59264.0,59263.0,2.21016295]
[1724166265849,10.51886898,59264.0,59263.0,2.21016295]
[1724166266053,10.18146898,59264.0,59263.0,2.21016295]
[1724166266261,10.51886898,59264.0,59263.0,2.21016295]
[1724166266460,10.51886898,59264.0,59263.0,2.04142295]
[1724166266665,10.51886898,59264.0,59263.0,2.02493199]
[1724166266869,5.75191898,59264.0,59263.0,2.02493199]
[1724166267082,10.18146898,59264.0,59263.0,2.02493199]
[1724166267286,10.98146898,59264.0,59263.0,1.94885199]
[1724166267493,11.11679898,59264.0,59263.0,1.78011199]
[1724166267700,11.11679898,59264.0,59263.0,1.75475199]
[1724166267905,11.11679898,59264.0,59263.0,1.61947199]
[1724166268113,11.26066241,59264.0,59263.0,1.53491199]
[1724166268320,11.45419898,59264.0,59263.0,1.12707057]
[1724166268528,11.45419898,59264.0,59263.0,0.97281457]
[1724166269137,11.50229585,59264.0,59263.0,0.89673457]
[1724166269342,11.50229585,59264.0,59263.0,0.86298657]
[1724166269549,11.50229585,59264.0,59263.0,0.72799457]
[1724166269753,11.50229585,59264.0,59263.0,0.65191457]
[1724166269959,11.16489585,59264.0,59263.0,0.65191457]
[1724166270171,11.32637049,59264.0,59263.0,0.47342212]
[1724166270378,11.14606103,59264.0,59263.0,0.32781498]
[1724166270556,2.64935492,59263.0,59262.0,1.46557772]
[1724166270788,8.5864933,59263.0,59262.0,1.29879931]
[1724166270994,8.5864933,59263.0,59262.0,0.69570028]
[1724166270995,8.67636694,59263.0,59262.0,0.69570028]
[1724166271205,8.40228702,59263.0,59262.0,0.50944539]
[1724166271425,8.42634828,59263.0,59262.0,0.17752727]
[1724166271651,8.42634828,59263.0,59261.0,0.89709383]
[1724166271652,0.03383,59262.0,59261.0,0.89709383]
[1724166271853,1.51753732,59261.0,59260.0,1.04039983]
[1724166272066,7.23396369,59261.0,59260.0,0.92932553]
[1724166272282,1.02965589,59260.0,59259.0,2.05697697]
[1724166272493,1.02965589,59260.0,59259.0,0.81108128]
[1724166272494,2.4873606,59260.0,59259.0,0.81108128]
[1724166272704,3.30731347,59260.0,59259.0,0.03250054]
[1724166272907,1.67055188,59259.0,59258.0,0.37323911]
[1724166273128,0.675012,59258.0,59257.0,2.07509327]
[1724166273343,0.53450742,59258.0,59257.0,1.69870283]
[1724166273553,0.21916739,59257.0,59256.0,1.64839234]
[1724166273770,7.54583704,59257.0,59256.0,0.84616664]
[1724166273985,0.32126698,59256.0,59255.0,0.53474629]
[1724166274212,0.135216,59165.0,59156.0,0.001]
[1724166274429,5.25547214,59256.0,59254.0,0.212437]
[1724166274430,1.23906437,59255.0,59254.0,0.212437]
[1724166274663,1.89965379,59254.0,59253.0,1.62036387]
[1724166274882,1.02956259,59253.0,59252.0,1.32003345]
[1724166275100,0.48949901,59252.0,59251.0,1.82855575]
[1724166275338,2.07593101,59252.0,59251.0,0.07234027]
[1724166275548,2.07593101,59252.0,59250.0,0.8424972]
[1724166275549,2.05466583,59251.0,59250.0,0.8424972]
[1724166275768,2.85467561,59251.0,59250.0,0.38383129]
[1724166276025,2.85467561,59251.0,59249.0,2.0981103]
[1724166276026,2.38826548,59250.0,59249.0,2.0981103]
[1724166276237,2.38826548,59250.0,59249.0,1.98947454]
[1724166276454,2.38826548,59250.0,59249.0,1.55472258]
[1724166276455,4.19334326,59250.0,59249.0,1.55472258]
[1724166276668,5.97934326,59250.0,59249.0,1.42115817]
[1724166276875,5.97934326,59250.0,59249.0,1.28568078]
[1724166276876,6.01095411,59250.0,59249.0,1.28568078]
[1724166277102,6.01095411,59250.0,59249.0,1.21544009]
[1724166277314,5.93812903,59250.0,59249.0,0.9786947]
[1724166277519,6.03392558,59250.0,59249.0,0.90279832]
[1724166277732,6.02274788,59250.0,59249.0,0.90279832]
[1724166277942,6.03092658,59250.0,59249.0,0.76732093]
[1724166278151,7.16832658,59250.0,59249.0,0.75038036]
[1724166278362,7.16832658,59250.0,59249.0,0.44605008]
[1724166278788,7.16832658,59250.0,59249.0,0.3104998]
[1724166278997,7.16832154,59250.0,59249.0,0.12467291]
[1724166279209,10.59603454,59250.0,59249.0,0.0833739]
[1724166279420,1.84001401,59249.0,59248.0,1.03469971]
[1724166279692,1.84001401,59249.0,59248.0,1.30084943]
[1724166279693,6.53572178,59249.0,59248.0,1.30084943]
[1724166279895,3.0168686,59249.0,59248.0,1.30084943]
[1724166280313,3.10158361,59249.0,59248.0,1.30084943]
[1724166280526,1.74517978,59249.0,59248.0,1.49364943]
[1724166280736,1.46867178,59249.0,59248.0,1.49364943]
[1724166281158,1.73871778,59249.0,59248.0,1.49364943]
[1724166282904,1.05714078,59249.0,59248.0,1.49364943]
[1724166283112,0.0199787,59250.0,59248.0,0.89914943]
[1724166283327,0.233663,59249.0,59248.0,0.89914943]
[1724166283553,0.773755,59249.0,59248.0,0.89914943]
[1724166284197,0.0199787,59250.0,59248.0,0.89914943]
[1724166284416,0.0199787,59250.0,59248.0,0.67721841]
[1724166284417,0.135023,59249.0,59248.0,0.67721841]
[1724166284632,1.181455,59249.0,59248.0,0.62722241]
[1724166284848,1.451501,59249.0,59248.0,0.62722241]
[1724166285257,0.911409,59249.0,59248.0,0.62722241]
[1724166285686,1.181455,59249.0,59248.0,0.62722241]
[1724166286333,1.181455,59249.0,59248.0,0.63722241]
[1724166286750,1.281455,59249.0,59248.0,0.63804441]
[1724166286954,1.551501,59249.0,59248.0,0.63804441]
[1724166287613,1.281455,59249.0,59248.0,0.63804441]
[1724166288461,1.551501,59249.0,59248.0,0.63804441]
[1724166288693,1.821547,59249.0,59248.0,0.63804441]
[1724166288898,1.89409915,59249.0,59248.0,0.63804441]
[1724166289108,1.551501,59249.0,59248.0,0.63804441]
[1724166289737,1.821547,59249.0,59248.0,0.63804441]
[1724166290406,1.821547,59249.0,59248.0,0.60312441]
[1724166290407,1.89409915,59249.0,59248.0,0.60312441]
[1724166290667,1.35290811,59249.0,59248.0,0.33934696]
[1724166290873,1.71775042,59249.0,59248.0,0.24311539]
[1724166291098,2.34903212,59249.0,59248.0,0.24311539]
[1724166291344,2.61907812,59249.0,59248.0,0.18011939]
[1724166291558,2.72806112,59249.0,59248.0,0.11260739]
[1724166291772,2.604792,59249.0,59248.0,0.11260739]
[1724166291978,2.242683,59249.0,59248.0,0.14260739]
[1724166292182,1.821547,59249.0,59248.0,0.14260739]
[1724166292600,0.945178,59248.0,59247.0,0.78916546]
[1724166292809,2.72004312,59248.0,59247.0,0.78916546]
[1724166293020,2.81813298,59248.0,59247.0,0.65413746]
[1724166293223,2.51248798,59248.0,59247.0,0.65413746]
[1724166293469,2.8092781,59248.0,59247.0,0.65413746]
[1724166293679,2.05693698,59248.0,59247.0,0.65413746]
[1724166293894,1.83387698,59248.0,59247.0,0.65413746]
[1724166294488,2.10392798,59248.0,59247.0,0.65413746]
[1724166294720,1.97140598,59248.0,59247.0,0.65413746]
[1724166294932,2.33699698,59248.0,59247.0,0.65413746]
[1724166295150,2.09505698,59248.0,59247.0,0.65413746]
[1724166295362,2.05167698,59248.0,59247.0,0.65413746]
[1724166295568,1.83387698,59248.0,59247.0,0.65413746]
[1724166295778,1.73387698,59248.0,59247.0,0.66413746]
[1724166296611,1.87923642,59248.0,59247.0,0.66413746]
[1724166296817,1.73387698,59248.0,59247.0,0.66413746]
[1724166297236,1.46382598,59248.0,59247.0,0.66413746]
[1724166298500,1.33922186,59248.0,59247.0,0.66413746]
[1724166298704,1.193267,59248.0,59247.0,0.66413746]
[1724166299131,1.293267,59248.0,59247.0,0.66413746]
[1724166299547,0.51814,59248.0,59247.0,0.66413746]
[1724166299750,0.49634,59248.0,59247.0,0.66413746]
[1724166299955,0.59339007,59248.0,59247.0,0.66495946]
[1724166300172,0.49634,59248.0,59247.0,0.66495946]
[1724166300376,0.0727859,59248.0,59247.0,0.65495946]
[1724166300578,0.07369011,59249.0,59247.0,0.65495946]
[1724166300968,0.50635,59248.0,59247.0,0.65495946]
[1724166301179,0.47173027,59248.0,59247.0,0.65595946]
[1724166301363,0.47173027,59248.0,59247.0,0.65495946]
[1724166301977,0.54454803,59248.0,59247.0,0.65495946]
[1724166302187,0.47173027,59248.0,59247.0,0.65495946]
[1724166302611,0.59309714,59248.0,59247.0,0.65495946]
[1724166302814,0.57173027,59248.0,59247.0,0.65495946]
[1724166303444,0.66880288,59248.0,59247.0,0.65495946]
[1724166303646,0.57173027,59248.0,59247.0,0.65495946]
[1724166304468,0.70675527,59248.0,59247.0,0.65495946]
[1724166304675,0.57173027,59248.0,59247.0,0.65495946]
[1724166308181,1.24685727,59248.0,59247.0,0.65495946]
[1724166308372,1.3681068,59248.0,59247.0,0.65495946]
[1724166308574,1.24685727,59248.0,59247.0,0.65495946]
[1724166309586,1.36810433,59248.0,59247.0,0.65495946]
[1724166309787,1.51690827,59248.0,59247.0,0.65495946]
[1724166310234,1.24685727,59248.0,59247.0,0.65495946]
[1724166310440,1.66240445,59248.0,59247.0,0.62033973]
[1724166310635,2.84735289,59248.0,59247.0,0.25155473]
[1724166310858,0.67515,59246.0,59245.0,1.9936]
[1724166311067,0.67515,59246.0,59245.0,1.7936]
[1724166311068,3.94494158,59246.0,59245.0,1.7936]
[1724166311272,3.94494158,59246.0,59245.0,0.842368]
[1724166311273,9.24947982,59246.0,59245.0,0.842368]
[1724166311485,9.3659722,59246.0,59245.0,0.80861]
[1724166311913,9.3659722,59246.0,59244.0,0.98611]
[1724166311914,1.2999229,59245.0,59244.0,0.98611]
[1724166312116,0.65306946,59244.0,59243.0,1.76971]
[1724166312319,1.85457869,59244.0,59243.0,1.58660042]
[1724166312521,2.70908428,59244.0,59243.0,1.58660042]
[1724166312724,3.40908428,59244.0,59243.0,1.58660042]
[1724166312937,4.08425728,59244.0,59243.0,1.58660042]
[1724166313137,4.11586428,59244.0,59243.0,1.58660042]
[1724166313370,4.11586428,59244.0,59243.0,1.41780542]
[1724166313371,4.38593399,59244.0,59243.0,1.41780542]
[1724166313565,9.28823299,59244.0,59243.0,1.41780542]
[1724166313820,9.25662528,59244.0,59243.0,1.41780542]
[1724166314009,9.25662528,59244.0,59243.0,1.16780542]
[1724166314010,8.93697328,59244.0,59243.0,1.16780542]
[1724166314210,9.73697328,59244.0,59243.0,1.16780542]
[1724166314538,10.00708333,59244.0,59243.0,0.99901042]
[1724166314730,9.76857831,59244.0,59243.0,0.99901042]
[1724166314941,5.18593131,59244.0,59243.0,0.99901042]
[1724166315164,5.18593131,59244.0,59243.0,0.77324141]
[1724166315165,10.08823031,59244.0,59243.0,0.77324141]
[1724166315368,5.19773131,59244.0,59243.0,0.38379285]
[1724166315577,10.10003031,59244.0,59243.0,0.38379285]
[1724166315792,10.33060999,59244.0,59243.0,0.27315603]
[1724166316019,10.33060999,59244.0,59242.0,1.4602]
[1724166316020,2.194422,59243.0,59242.0,1.38210362]
[1724166316229,8.76756192,59243.0,59242.0,1.3508836]
[1724166316442,8.76756192,59243.0,59242.0,1.1820836]
[1724166316653,5.78373292,59243.0,59242.0,0.12418556]
[1724166316859,2.23892911,59242.0,59241.0,0.76617523]
[1724166317075,2.23892911,59242.0,59240.0,1.0267]
[1724166317076,0.52388253,59241.0,59240.0,0.29168196]
[1724166317278,0.52388253,59241.0,59239.0,1.44970053]
[1724166317279,0.25324343,59240.0,59239.0,1.44970053]
[1724166317479,1.5352347,59240.0,59239.0,1.30694556]
[1724166317692,3.60158195,59240.0,59239.0,0.98921945]
[1724166317897,3.60158195,59240.0,59239.0,0.32843178]
[1724166318118,3.60158195,59240.0,59174.0,0.38527892]
[1724166318119,1.216728,59175.0,59174.0,0.38527892]
[1724166318327,1.17098689,59175.0,59174.0,0.38527892]
[1724166318529,1.95213889,59175.0,59174.0,0.38527892]
[1724166318737,2.44332377,59175.0,59174.0,0.38527892]
[1724166318945,2.32252289,59175.0,59174.0,0.38527892]
[1724166319383,2.32252289,59175.0,59147.0,0.1808]
[1724166319384,1.2172,59152.0,59147.0,0.1808]
[1724166319587,2.22299489,59152.0,59147.0,0.1808]
[1724166319797,0.405816,59140.0,59139.0,0.1815]
[1724166320024,1.43043427,59140.0,59139.0,0.16463999]
[1724166320229,1.9976356,59140.0,59139.0,0.16463999]
[1724166320435,2.22324289,59140.0,59139.0,0.16395149]
[1724166320642,0.946953,59137.0,59136.0,0.0117967]
[1724166320849,1.78924127,59137.0,59136.0,0.0117967]
[1724166321050,0.57173027,59137.0,59136.0,0.0113107]
[1724166321266,0.37173027,59137.0,59136.0,0.4182107]
[1724166321485,0.405837,59137.0,59110.0,0.1]
[1724166321712,0.03,59127.0,59017.0,0.0117967]
[1724166321914,0.62755255,59136.0,59017.0,0.0117967]
[1724166321915,0.03,59087.0,59017.0,0.0117967]
[1724166322141,0.04800863,59032.0,59009.0,0.0065328]
[1724166322379,0.04800863,59023.0,59009.0,0.0054328]
[1724166322585,0.271091,59021.0,58985.0,0.03203717]
[1724166322800,0.49658263,59022.0,58977.0,4.119e-05]
[1724166322801,0.45234499,59022.0,58988.0,0.04427949]
[1724166323014,0.35800929,59022.0,59007.0,0.5069]
[1724166323227,0.2574,59031.0,59019.0,0.5058875]
[1724166323437,0.0118,59030.0,58983.0,0.03731637]
[1724166323638,0.2574,59031.0,58929.0,0.27151]
[1724166323639,0.2574,59031.0,59009.0,0.1916925]
[1724166324049,0.2574,59031.0,59018.0,0.5069]
[1724166324201,0.2574,59031.0,58993.0,0.067915]
[1724166324202,0.2574,59031.0,59008.0,0.5069]
[1724166324401,0.2574,59031.0,59019.0,0.5069]
[1724166324622,0.2574,59031.0,58993.0,0.067915]
[1724166324623,0.0026846,59033.0,59029.0,0.5069]
[1724166324821,0.0026846,59033.0,59030.0,0.3855]
[1724166325502,0.25756462,59043.0,59030.0,0.3855]
[1724166325738,1.0084929,59103.0,59043.0,0.4152]
[1724166325739,0.49229154,59057.0,59043.0,0.4152]
[1724166325940,0.35756462,59056.0,59043.0,0.4152]
[1724166326147,0.3385,59055.0,59043.0,0.4152]
[1724166326572,0.3385,59055.0,59043.0,0.3976]
[1724166326573,0.49229154,59054.0,59043.0,0.3976]
[1724166326777,0.50805,59054.0,59043.0,0.32600794]
[1724166326996,0.49229154,59052.0,59043.0,0.32600794]
[1724166327200,0.3385,59055.0,59043.0,0.32600794]
[1724166327201,0.50805,59051.0,59043.0,0.32600794]
[1724166327418,0.20837988,59051.0,59045.0,0.5069]
[1724166328038,0.03,59050.0,59049.0,0.0039994]
[1724166328189,0.49229154,59088.0,59076.0,0.0019994]
[1724166328418,0.25756462,59087.0,59066.0,0.0019994]
[1724166328620,0.0118,59086.0,59055.0,0.5069]
[1724166328821,0.50777,59085.0,59041.0,0.0944]
[1724166329026,0.50777,59085.0,59045.0,0.0039994]
[1724166329027,0.54459627,59085.0,59045.0,0.0039994]
[1724166329405,0.54453593,59085.0,59046.0,0.0019994]
[1724166329527,0.54453593,59085.0,59036.0,0.5069]
[1724166329730,0.54453593,59085.0,59059.0,0.0019994]
[1724166329934,0.49229154,59073.0,59058.0,0.5863]
[1724166330157,1.24503781,59072.0,59058.0,0.5863]
[1724166330340,1.64523781,59072.0,59058.0,0.3939]
[1724166330578,1.64523781,59072.0,59046.0,0.5718]
[1724166330579,0.270867,59070.0,59046.0,0.5718]
[1724166330738,1.64523781,59072.0,59046.0,0.5718]
[1724166330739,0.60750966,59069.0,59059.0,0.49229154]
[1724166330940,0.50750966,59069.0,59060.0,0.3914]
[1724166331140,0.50770966,59069.0,59060.0,0.3914]
[1724166331372,0.50750966,59069.0,59060.0,0.3914]
[1724166331940,0.00540793,59068.0,59063.0,0.1729]
[1724166332159,0.0002,59099.0,59049.0,0.0019994]
[1724166332160,0.0002,59099.0,59074.0,0.001]
[1724166332395,0.49229154,59078.0,59074.0,0.0175]
[1724166332609,0.49229154,59078.0,59035.0,0.001]
[1724166332610,0.3384,59077.0,59043.0,0.0175]
[1724166332791,1.18463,59077.0,59055.0,0.49229154]
[1724166333043,0.4,59066.0,59043.0,0.0175]
[1724166333259,0.6887,59065.0,59044.0,0.49229154]
[1724166333472,0.6887,59065.0,59043.0,0.0175]
[1724166333473,1.19643,59065.0,59043.0,0.0139355]
[1724166333691,0.1,59064.0,59043.0,0.0139355]
[1724166333917,0.50773,59063.0,59043.0,0.0139355]
[1724166334138,0.1,59062.0,59043.0,0.01473047]
[1724166334342,0.50773,59061.0,59043.0,0.01473047]
[1724166334563,0.50793,59061.0,59043.0,0.01473047]
[1724166334771,0.50793,59061.0,59054.0,0.0019994]
[1724166334983,0.50793,59061.0,59043.0,0.01473047]
[1724166335189,0.1,59060.0,59043.0,0.01473047]
[1724166335414,0.1,59060.0,59046.0,0.0019994]
[1724166335415,0.0002,59060.0,59046.0,0.0019994]
[1724166335620,0.0002,59060.0,59043.0,0.01473047]
[1724166335849,0.0002,59060.0,59046.0,0.0019994]
[1724166336059,0.0002,59060.0,59055.0,0.0019994]
[1724166336270,0.0002,59060.0,59054.0,0.0039994]
[1724166336701,0.0002,59060.0,59043.0,0.01473047]
[1724166336908,0.0002,59060.0,59048.0,0.0019994]
[1724166337113,0.0002,59060.0,59043.0,0.01473047]
[1724166337327,0.0002,59060.0,59055.0,0.000822]
[1724166337544,0.50773,59059.0,59055.0,0.0004564]
[1724166337759,0.50793,59059.0,59055.0,0.0004564]
[1724166337967,0.50793,59059.0,59055.0,0.0024558]
[1724166338173,0.50793,59059.0,59058.0,0.0019994]
[1724166338391,0.50793,59059.0,59058.0,0.0039994]
[1724166338604,0.50793,59059.0,59057.0,0.0019994]
[1724166338831,0.50793,59059.0,59055.0,0.0004564]
[1724166339694,0.01243757,59058.0,59055.0,0.0004564]
[1724166339907,0.01263757,59058.0,59055.0,0.0004564]
[1724166340379,0.01240547,59058.0,59031.0,0.092]
[1724166340588,0.50773,59057.0,59031.0,0.092]
[1724166340805,0.50773,59057.0,59033.0,0.092]
[1724166340806,0.50741352,59057.0,59033.0,0.092]
[1724166341028,0.50741352,59057.0,59035.0,0.092]
[1724166341029,0.01249904,59056.0,59035.0,0.092]
[1724166341232,0.01249904,59056.0,59037.0,0.092]
[1724166341447,0.01249904,59056.0,59036.0,0.00338656]
[1724166341448,0.01269904,59056.0,59039.0,0.0974]
[1724166341654,0.01269904,59056.0,59041.0,0.0974]
[1724166341867,0.50721352,59057.0,59043.0,0.0974]
[1724166342074,0.50721352,59057.0,59045.0,0.0974]
[1724166342283,0.50721352,59057.0,59047.0,0.0974]
[1724166342284,0.09061352,59057.0,59047.0,0.0974]
[1724166342520,0.09061352,59057.0,59046.0,0.00338616]
[1724166342521,0.01031646,59056.0,59049.0,0.0974]
[1724166342948,0.3385,59065.0,59047.0,0.00338602]
[1724166342949,0.00872358,59055.0,59051.0,0.0974]
[1724166343153,0.00872358,59055.0,59053.0,0.0974]
[1724166343365,0.3385,59065.0,59055.0,0.0974]
[1724166343601,0.49229154,59091.0,59057.0,0.0974]
[1724166343811,0.00879448,59064.0,59058.0,0.00338491]
[1724166344023,0.3384,59090.0,59061.0,0.0974]
[1724166344240,0.3384,59090.0,59063.0,0.0974]
[1724166344451,0.00888218,59089.0,59065.0,0.0917]
[1724166344664,0.00888218,59089.0,59068.0,0.0917]
[1724166344879,0.00888218,59089.0,59066.0,0.02638457]
[1724166344880,0.00888218,59089.0,59070.0,0.0917]
[1724166345090,0.50117372,59089.0,59072.0,0.0917]
[1724166345305,0.00888218,59089.0,59072.0,0.0917]
[1724166345554,0.3384,59090.0,59074.0,0.0917]
[1724166345765,0.3384,59090.0,59073.0,0.00338446]
[1724166345766,0.3384,59090.0,59077.0,0.0917]
[1724166345972,0.3384,59090.0,59076.0,0.3178]
[1724166345973,0.3384,59090.0,59079.0,0.0917]
[1724166346185,0.3384,59090.0,59081.0,0.0917]
[1724166346397,0.3384,59090.0,59085.0,0.0917]
[1724166346622,0.0002,59119.0,59088.0,0.0917]
[1724166346841,0.0002,59119.0,59074.0,0.001]
[1724166346842,0.0002,59119.0,59095.0,0.0917]
[1724166347055,0.0002,59119.0,59097.0,0.0917]
[1724166347269,0.0002,59119.0,59096.0,0.02638256]
[1724166347270,0.49229154,59124.0,59098.0,0.00338235]
[1724166347506,0.0204,59127.0,59100.0,0.03383]
[1724166347721,0.0002,59139.0,59100.0,0.03383]
[1724166347722,0.0002,59139.0,59104.0,0.5069]
[1724166347929,0.0002,59139.0,59105.0,0.0612117]
[1724166348178,0.00759696,59138.0,59114.0,0.5069]
[1724166348392,0.04077047,59163.0,59115.0,0.023]